[Event "25th Abu Dhabi Master 2018"]
[Site "Abu Dhabi"]
[Date "2018.08.08"]
[Round "2"]
[White "Al Hosani, Omran"]
[Black "Kushagra, Mohan"]
[Result "0-1"]
[ECO "A45"]
[WhiteElo "2135"]
[BlackElo "2270"]
[Annotator "NA"]
[PlyCount "114"]
[EventDate "2018.08.05"]
[EventType "swiss"]
[EventCountry "UAE"]
[SourceTitle "playchess.com"]
[Source "ChessBase"]
[SourceQuality "1"]
[TimeControl "5400+30"]

1. d4 {[%emt 0:00:00]} Nf6 {[%emt 0:00:00]} 2. Bf4 {[%emt 0:00:00]} g6 {[%emt 0:00:00]} 3. Nc3 {[%emt 0:00:00]} d5 {[%emt 0:00:00]} 4. e3 {[%emt 0:00:01]} Bg7 {[%emt 0:00:00]} 5. h4 {[%emt 0:00:25]} O-O {[%emt 0:00:00]} 6. h5 {[%emt 0:00:18]} c5 {[%emt 0:00:00]} 7. hxg6 {[%emt 0:01:20]} hxg6 {[%emt 0:00:04]} 8. Nb5 {[%emt 0:05:40]} Nc6 {[%emt 0:15:50]} 9. Nc7 {[%emt 0:06:46]} e5 {[%emt 0:05:35]} 10. dxe5 {[%emt 0:00:07]} Qxc7 {[%emt 0:00:04]} 11. exf6 {[%emt 0:00:05]} Qa5+ {[%emt 0:00:03]} 12. Qd2 {[%emt 0:00:09]} Bxf6 {[%emt 0:02:45]} 13. Qxa5 {[%emt 0:03:26]} Nxa5 {[%emt 0:00:09]} 14. O-O-O {[%emt 0:01:16]} b6 {[%emt 0:12:43]} 15. Nf3 {[%emt 0:02:42]} Bb7 {[%emt 0:02:24]} 16. Bg5 {[%emt 0:03:51]} Bg7 {[%emt 0:05:04]} 17. Be2 {[%emt 0:03:01]} Rfe8 {[%emt 0:03:58]} 18. Bb5 {[%emt 0:01:53]} Re4 {[%emt 0:01:29]} 19. c3 {[%emt 0:03:52]} Nc4 {[%emt 0:05:32]} 20. Rh4 {[%emt 0:01:07]} Rxh4 {[%emt 0:02:46]} 21. Bxh4 {[%emt 0:00:12]} Nd6 {[%emt 0:04:17]} 22. Bd3 {[%emt 0:01:36]} Re8 {[%emt 0:01:47]} 23. Nh2 {[%emt 0:04:55]} Ne4 {[%emt 0:05:44]} 24. Ng4 {[%emt 0:00:48]} g5 {[%emt 0:02:45]} 25. f3 {[%emt 0:05:01]} gxh4 {[%emt 0:02:22]} 26. fxe4 {[%emt 0:00:02]} dxe4 {[%emt 0:00:58]} 27. Bc4 {[%emt 0:00:09]} Bc8 {[%emt 0:02:27]} 28. Rf1 {[%emt 0:03:02]} Be6 {[%emt 0:01:25]} 29. Bb5 {[%emt 0:01:24]} Rd8 {[%emt 0:02:01]} 30. Nf6+ {[%emt 0:00:12]} Bxf6 {[%emt 0:00:17]} 31. Rxf6 {[%emt 0:00:02]} Bxa2 {[%emt 0:00:15]} 32. Rf4 {[%emt 0:00:15]} Bd5 {[%emt 0:04:28]} 33. Rxh4 {[%emt 0:01:02]} Rd6 {[%emt 0:00:41]} 34. Rg4+ {[%emt 0:00:50]} Rg6 {[%emt 0:00:19]} 35. Rxg6+ {[%emt 0:00:29]} fxg6 {[%emt 0:00:02]} 36. Kd2 {[%emt 0:00:19]} Kg7 {[%emt 0:00:33]} 37. Ke2 {[%emt 0:00:26]} Kf6 {[%emt 0:00:32]} 38. Kf2 {[%emt 0:00:11]} Bb7 {[%emt 0:00:31]} 39. Be2 {[%emt 0:01:11]} a6 {[%emt 0:00:44]} 40. Kg3 {[%emt 0:02:12]} Kg5 {[%emt 0:00:15]} 41. Bf1 {[%emt 0:00:22]} b5 {[%emt 0:05:56]} 42. Be2 {[%emt 0:02:32]} b4 {[%emt 0:01:23]} 43. cxb4 {[%emt 0:00:28]} cxb4 {[%emt 0:00:04]} 44. Kf2 {[%emt 0:01:12]} Kh4 {[%emt 0:01:45]} 45. Bf1 {[%emt 0:02:21]} a5 {[%emt 0:01:05]} 46. g3+ {[%emt 0:00:22]} Kg4 {[%emt 0:00:12]} 47. Be2+ {[%emt 0:00:29]} Kh3 {[%emt 0:00:27]} 48. Bf1+ {[%emt 0:00:08]} Kh2 {[%emt 0:00:41]} 49. Bb5 {[%emt 0:00:41]} Bd5 {[%emt 0:01:04]} 50. Ba4 {[%emt 0:00:50]} Bc4 {[%emt 0:00:25]} 51. Bc2 {[%emt 0:00:19]} Bd5 {[%emt 0:00:19]} 52. Ba4 {[%emt 0:00:46]} g5 {[%emt 0:00:41]} 53. Bd1 {[%emt 0:01:13]} b3 {[%emt 0:00:33]} 54. Be2 {[%emt 0:02:26]} a4 {[%emt 0:01:00]} 55. Bd1 {[%emt 0:00:01]} Bc4 {[%emt 0:00:08]} 56. g4 {[%emt 0:00:05]} a3 {[%emt 0:00:16]} 57. bxa3 {[%emt 0:00:23]} b2 {[%emt 0:00:05]} 0-1

[Event "25th Abu Dhabi Master 2018"]
[Site "Abu Dhabi"]
[Date "2018.08.08"]
[Round "2"]
[White "Hakobyan, Eduard"]
[Black "Jubin, Jimmy"]
[Result "0-1"]
[ECO "B12"]
[WhiteElo "2134"]
[BlackElo "2267"]
[Annotator "NA"]
[PlyCount "52"]
[EventDate "2018.08.05"]
[EventType "swiss"]
[EventCountry "UAE"]
[SourceTitle "playchess.com"]
[Source "ChessBase"]
[SourceQuality "1"]
[TimeControl "5400+30"]

1. e4 {[%emt 0:02:26]} c6 {[%emt 0:00:00]} 2. d4 {[%emt 0:00:08]} d5 {[%emt 0:00:00]} 3. e5 {[%emt 0:00:06]} Bf5 {[%emt 0:00:00]} 4. Nd2 {[%emt 0:00:07]} e6 {[%emt 0:00:00]} 5. Nb3 {[%emt 0:00:05]} Nd7 {[%emt 0:00:00]} 6. Nf3 {[%emt 0:00:08]} Ne7 {[%emt 0:00:10]} 7. Be2 {[%emt 0:00:13]} Ng6 {[%emt 0:00:05]} 8. O-O {[%emt 0:00:34]} Be7 {[%emt 0:00:05]} 9. Ne1 {[%emt 0:07:35]} Ngf8 {[%emt 0:07:17]} 10. Bd2 {[%emt 0:06:55]} Qc7 {[%emt 0:01:25]} 11. a4 {[%emt 0:09:07]} a6 {[%emt 0:03:01]} 12. Nd3 {[%emt 0:07:16]} c5 {[%emt 0:19:18]} 13. dxc5 {[%emt 0:04:03]} Bxd3 {[%emt 0:13:41]} 14. cxd3 {[%emt 0:00:40]} Nxc5 {[%emt 0:02:34]} 15. Rc1 {[%emt 0:07:39]} Qb6 {[%emt 0:00:27]} 16. Nxc5 {[%emt 0:00:08]} Bxc5 {[%emt 0:00:07]} 17. a5 {[%emt 0:00:12]} Qa7 {[%emt 0:02:09]} 18. Qa4+ {[%emt 0:00:54]} Nd7 {[%emt 0:01:50]} 19. d4 {[%emt 0:03:56]} Bxd4 {[%emt 0:06:57]} 20. Rc7 {[%emt 0:00:08]} Rd8 {[%emt 0:00:07]} 21. Rfc1 {[%emt 0:00:40]} Bxf2+ {[%emt 0:02:58]} 22. Kf1 {[%emt 0:00:06]} Qd4 {[%emt 0:01:31]} 23. Bb4 {[%emt 0:04:46]} Bg1 {[%emt 0:07:02]} 24. Ke1 {[%emt 0:00:13]} Bxh2 {[%emt 0:05:37]} 25. R1c3 {[%emt 0:02:40]} Bxe5 {[%emt 0:01:22]} 26. Rxd7 {[%emt 0:01:44]} Qg1+ {[%emt 0:00:44]} 0-1

[Event "25th Abu Dhabi Master 2018"]
[Site "Abu Dhabi"]
[Date "2018.08.08"]
[Round "2"]
[White "Villanueva, Nelson"]
[Black "Pranav, Anand"]
[Result "0-1"]
[ECO "E04"]
[WhiteElo "2133"]
[BlackElo "2260"]
[Annotator "NA"]
[PlyCount "94"]
[EventDate "2018.08.05"]
[EventType "swiss"]
[EventCountry "UAE"]
[SourceTitle "playchess.com"]
[Source "ChessBase"]
[SourceQuality "1"]
[TimeControl "5400+30"]

1. d4 {[%emt 0:00:00]} Nf6 {[%emt 0:00:00]} 2. c4 {[%emt 0:00:00]} e6 {[%emt 0:00:00]} 3. Nf3 {[%emt 0:00:00]} d5 {[%emt 0:00:00]} 4. g3 {[%emt 0:00:00]} dxc4 {[%emt 0:00:00]} 5. Bg2 {[%emt 0:00:00]} a6 {[%emt 0:00:04]} 6. Ne5 {[%emt 0:00:02]} Bb4+ {[%emt 0:00:06]} 7. Nc3 {[%emt 0:00:05]} Nd5 {[%emt 0:00:11]} 8. O-O {[%emt 0:00:17]} O-O {[%emt 0:01:14]} 9. Qc2 {[%emt 0:02:21]} b5 {[%emt 0:00:16]} 10. Rd1 {[%emt 0:00:34]} Bb7 {[%emt 0:07:03]} 11. Ne4 {[%emt 0:00:32]} f6 {[%emt 0:07:52]} 12. Nf3 {[%emt 0:00:26]} Nd7 {[%emt 0:01:21]} 13. b3 {[%emt 0:01:02]} cxb3 {[%emt 0:09:10]} 14. axb3 {[%emt 0:00:08]} Qe7 {[%emt 0:00:59]} 15. Bb2 {[%emt 0:08:03]} Rac8 {[%emt 0:06:12]} 16. h4 {[%emt 0:09:05]} c5 {[%emt 0:02:42]} 17. dxc5 {[%emt 0:00:18]} Nxc5 {[%emt 0:04:36]} 18. Nxc5 {[%emt 0:04:12]} Bxc5 {[%emt 0:00:47]} 19. Qb1 {[%emt 0:00:46]} Nb4 {[%emt 0:12:57]} 20. e3 {[%emt 0:00:40]} Rfd8 {[%emt 0:05:12]} 21. Rxd8+ {[%emt 0:03:21]} Rxd8 {[%emt 0:02:10]} 22. Ne1 {[%emt 0:05:50]} Bxg2 {[%emt 0:03:48]} 23. Nxg2 {[%emt 0:00:07]} e5 {[%emt 0:05:04]} 24. h5 {[%emt 0:03:14]} Qf7 {[%emt 0:02:47]} 25. Bc3 {[%emt 0:08:56]} Qxh5 {[%emt 0:00:30]} 26. Qe4 {[%emt 0:02:12]} Rd1+ {[%emt 0:01:08]} 27. Rxd1 {[%emt 0:01:44]} Qxd1+ {[%emt 0:00:03]} 28. Kh2 {[%emt 0:00:07]} Qxb3 {[%emt 0:03:03]} 29. Bxb4 {[%emt 0:01:43]} Bxb4 {[%emt 0:00:17]} 30. Qa8+ {[%emt 0:00:15]} Bf8 {[%emt 0:00:13]} 31. Qxa6 {[%emt 0:00:08]} b4 {[%emt 0:00:12]} 32. Nh4 {[%emt 0:00:11]} Qf7 {[%emt 0:02:17]} 33. Qc8 {[%emt 0:01:47]} g6 {[%emt 0:00:49]} 34. Qb8 {[%emt 0:00:10]} Qa2 {[%emt 0:01:26]} 35. Kg2 {[%emt 0:00:06]} Qd5+ {[%emt 0:00:25]} 36. Nf3 {[%emt 0:00:29]} h5 {[%emt 0:02:09]} 37. Qb6 {[%emt 0:01:23]} Kf7 {[%emt 0:00:23]} 38. Qc7+ {[%emt 0:00:18]} Be7 {[%emt 0:00:36]} 39. Qc2 {[%emt 0:00:18]} b3 {[%emt 0:02:33]} 40. Qc7 {[%emt 0:00:19]} g5 {[%emt 0:01:19]} 41. e4 {[%emt 0:05:36]} Qxe4 {[%emt 0:00:08]} 42. Qc3 {[%emt 0:00:04]} g4 {[%emt 0:00:29]} 43. Qxb3+ {[%emt 0:00:02]} Kg7 {[%emt 0:00:23]} 44. Qe6 {[%emt 0:00:20]} Qxf3+ {[%emt 0:00:10]} 45. Kh2 {[%emt 0:00:02]} Qxf2+ {[%emt 0:00:13]} 46. Kh1 {[%emt 0:00:02]} Qf1+ {[%emt 0:00:08]} 47. Kh2 {[%emt 0:00:01]} Qf5 0-1

[Event "25th Abu Dhabi Master 2018"]
[Site "Abu Dhabi"]
[Date "2018.08.08"]
[Round "2"]
[White "Byron, Alan M"]
[Black "Krishnater, Kushager"]
[Result "1/2-1/2"]
[ECO "C50"]
[WhiteElo "2132"]
[BlackElo "2256"]
[Annotator "NA"]
[PlyCount "80"]
[EventDate "2018.08.05"]
[EventType "swiss"]
[EventCountry "UAE"]
[SourceTitle "playchess.com"]
[Source "ChessBase"]
[SourceQuality "1"]
[TimeControl "5400+30"]

1. e4 {[%emt 0:04:50]} e5 {[%emt 0:00:00]} 2. Nf3 {[%emt 0:00:08]} Nc6 {[%emt 0:00:00]} 3. Bc4 {[%emt 0:00:38]} Bc5 {[%emt 0:00:00]} 4. d3 {[%emt 0:00:36]} Nf6 {[%emt 0:00:00]} 5. a4 {[%emt 0:01:43]} d6 {[%emt 0:00:56]} 6. c3 {[%emt 0:00:11]} a6 {[%emt 0:01:40]} 7. b4 {[%emt 0:02:49]} Ba7 {[%emt 0:00:05]} 8. O-O {[%emt 0:03:37]} O-O {[%emt 0:02:13]} 9. Qe2 {[%emt 0:09:10]} a5 {[%emt 0:06:38]} 10. b5 {[%emt 0:00:57]} Ne7 {[%emt 0:00:05]} 11. Be3 {[%emt 0:06:21]} Bxe3 {[%emt 0:00:22]} 12. Qxe3 {[%emt 0:01:35]} Ng6 {[%emt 0:00:40]} 13. Nbd2 {[%emt 0:00:47]} b6 {[%emt 0:04:37]} 14. Rad1 {[%emt 0:11:57]} Bb7 {[%emt 0:08:51]} 15. d4 {[%emt 0:03:25]} Qe7 {[%emt 0:08:44]} 16. Rfe1 {[%emt 0:02:53]} h6 {[%emt 0:02:05]} 17. g3 {[%emt 0:02:12]} Rfe8 {[%emt 0:01:23]} 18. d5 {[%emt 0:08:20]} Bc8 {[%emt 0:02:26]} 19. Bf1 {[%emt 0:00:13]} Nh7 {[%emt 0:03:11]} 20. Bg2 {[%emt 0:01:11]} Rf8 {[%emt 0:04:51]} 21. Nc4 {[%emt 0:01:05]} f5 {[%emt 0:04:57]} 22. exf5 {[%emt 0:00:14]} Bxf5 {[%emt 0:00:04]} 23. Nd4 {[%emt 0:04:30]} Qf6 {[%emt 0:07:13]} 24. Nxf5 {[%emt 0:02:35]} Qxf5 {[%emt 0:00:04]} 25. Be4 {[%emt 0:04:26]} Qh5 {[%emt 0:03:32]} 26. Qe2 {[%emt 0:05:37]} Qxe2 {[%emt 0:00:56]} 27. Rxe2 {[%emt 0:00:02]} Rf6 {[%emt 0:01:42]} 28. h4 {[%emt 0:04:15]} Ngf8 {[%emt 0:00:48]} 29. Ne3 {[%emt 0:03:08]} Nd7 {[%emt 0:01:13]} 30. Ng2 {[%emt 0:05:59]} Nc5 {[%emt 0:01:27]} 31. Bc2 {[%emt 0:01:01]} Rf3 {[%emt 0:01:33]} 32. Re3 {[%emt 0:00:41]} Raf8 {[%emt 0:00:47]} 33. Rd2 {[%emt 0:00:47]} Rxe3 {[%emt 0:01:37]} 34. Nxe3 {[%emt 0:00:08]} Nf6 {[%emt 0:00:38]} 35. f3 {[%emt 0:01:47]} Nfd7 {[%emt 0:06:19]} 36. Kg2 {[%emt 0:00:07]} h5 {[%emt 0:02:31]} 37. Rd1 {[%emt 0:00:10]} Rf6 {[%emt 0:00:48]} 38. Ra1 {[%emt 0:00:00]} g6 {[%emt 0:00:00]} 39. Rf1 {[%emt 0:01:23]} Kg7 {[%emt 0:02:18]} 40. Re1 {[%emt 0:00:09]} Rf8 {[%emt 0:00:43]} 1/2-1/2

[Event "25th Abu Dhabi Master 2018"]
[Site "Abu Dhabi"]
[Date "2018.08.08"]
[Round "2"]
[White "Al Hajiri, Bader"]
[Black "Srija, Seshadri"]
[Result "0-1"]
[ECO "C58"]
[WhiteElo "2120"]
[BlackElo "2255"]
[Annotator "NA"]
[PlyCount "66"]
[EventDate "2018.08.05"]
[EventType "swiss"]
[EventCountry "UAE"]
[SourceTitle "playchess.com"]
[Source "ChessBase"]
[SourceQuality "1"]
[TimeControl "5400+30"]

1. e4 {[%emt 0:02:35]} e5 {[%emt 0:00:00]} 2. Nf3 {[%emt 0:00:10]} Nc6 {[%emt 0:00:00]} 3. Bc4 {[%emt 0:00:37]} Nf6 {[%emt 0:00:06]} 4. Ng5 {[%emt 0:01:22]} d5 {[%emt 0:00:15]} 5. exd5 {[%emt 0:00:09]} Na5 {[%emt 0:00:06]} 6. Bb5+ {[%emt 0:01:54]} c6 {[%emt 0:00:07]} 7. dxc6 {[%emt 0:00:06]} bxc6 {[%emt 0:00:05]} 8. Qf3 {[%emt 0:00:36]} Be7 {[%emt 0:00:12]} 9. Bxc6+ {[%emt 0:00:33]} Nxc6 {[%emt 0:00:10]} 10. Qxc6+ {[%emt 0:00:05]} Bd7 {[%emt 0:00:02]} 11. Qc4 {[%emt 0:00:55]} O-O {[%emt 0:00:07]} 12. Nc3 {[%emt 0:00:02]} h6 {[%emt 0:04:39]} 13. Nf3 {[%emt 0:02:03]} Rc8 {[%emt 0:02:09]} 14. Qe2 {[%emt 0:00:26]} e4 {[%emt 0:05:29]} 15. Ne5 {[%emt 0:06:21]} Bf5 {[%emt 0:06:54]} 16. O-O {[%emt 0:15:01]} Qd4 {[%emt 0:10:08]} 17. Qb5 {[%emt 0:01:21]} Bc5 {[%emt 0:00:39]} 18. b4 {[%emt 0:11:45]} Qxe5 {[%emt 0:12:38]} 19. bxc5 {[%emt 0:02:59]} Ng4 {[%emt 0:02:08]} 20. g3 {[%emt 0:00:48]} Rxc5 {[%emt 0:01:07]} 21. Qe2 {[%emt 0:01:14]} Rb8 {[%emt 0:02:21]} 22. a4 {[%emt 0:12:03]} Qe6 {[%emt 0:13:01]} 23. Ba3 {[%emt 0:05:11]} Rcc8 {[%emt 0:07:14]} 24. Rae1 {[%emt 0:04:18]} Nf6 {[%emt 0:03:06]} 25. f3 {[%emt 0:01:05]} Bh3 {[%emt 0:00:42]} 26. Rf2 {[%emt 0:01:47]} e3 {[%emt 0:00:33]} 27. Rff1 {[%emt 0:06:26]} Bxf1 {[%emt 0:03:01]} 28. Qxf1 {[%emt 0:00:11]} Qb6 {[%emt 0:01:43]} 29. a5 {[%emt 0:07:48]} Qxa5 {[%emt 0:02:46]} 30. Rxe3 {[%emt 0:01:26]} Qxa3 {[%emt 0:00:51]} 31. Nd5 {[%emt 0:00:05]} Qc5 {[%emt 0:01:20]} 32. Ne7+ {[%emt 0:00:03]} Kh8 {[%emt 0:00:14]} 33. Nxc8 {[%emt 0:00:01]} Nd5 0-1

[Event "25th Abu Dhabi Master 2018"]
[Site "Abu Dhabi"]
[Date "2018.08.08"]
[Round "2"]
[White "Salonika, Saina"]
[Black "Idani, Pouya"]
[Result "0-1"]
[ECO "B23"]
[WhiteElo "2069"]
[BlackElo "2599"]
[Annotator "ChessBase"]
[PlyCount "138"]
[EventDate "2018.08.05"]
[EventType "swiss"]
[EventCountry "UAE"]
[SourceTitle "playchess.com"]
[Source "ChessBase"]
[SourceQuality "1"]
[TimeControl "5400+30"]

1. e4 {[%emt 0:00:00]} c5 {[%emt 0:00:00]} 2. Nc3 {[%emt 0:00:00]} d6 {[%emt 0:00:00]} 3. f4 {[%emt 0:00:00]} g6 {[%emt 0:00:00]} 4. Nf3 {[%emt 0:01:05]} Bg7 {[%emt 0:00:00]} 5. Bc4 {[%emt 0:00:53]} Nc6 {[%emt 0:00:00]} 6. d3 {[%emt 0:00:47]} e6 {[%emt 0:00:00]} 7. O-O {[%emt 0:02:33]} Nge7 {[%emt 0:00:00]} 8. Bb3 {[%emt 0:05:56]} O-O {[%emt 0:00:35]} 9. Qe1 {[%emt 0:03:51]} Na5 {[%emt 0:03:28]} 10. Be3 {[%emt 0:03:47]} b6 {[%emt 0:03:37]} 11. Qh4 {[%emt 0:09:40]} d5 {[%emt 0:07:12]} 12. f5 {[%emt 0:02:20]} gxf5 {[%emt 0:02:03]} 13. exd5 {[%emt 0:11:04]} Nxb3 {[%emt 0:01:15]} 14. axb3 {[%emt 0:01:10]} Nxd5 {[%emt 0:00:31]} 15. Nxd5 {[%emt 0:04:51]} Qxd5 {[%emt 0:01:08]} 16. Ng5 {[%emt 0:04:04]} h6 {[%emt 0:00:12]} 17. Nh3 {[%emt 0:00:12]} Bb7 {[%emt 0:05:14]} 18. Qg3 {[%emt 0:02:45]} Qe5 {[%emt 0:05:40]} 19. Bf4 {[%emt 0:09:49]} Qf6 {[%emt 0:03:01]} 20. Rae1 {[%emt 0:00:17]} Kh7 {[%emt 0:05:32]} 21. Be5 {[%emt 0:05:54]} Qg6 {[%emt 0:00:31]} 22. Qxg6+ {[%emt 0:00:07]} Kxg6 {[%emt 0:01:16]} 23. Nf4+ {[%emt 0:00:06]} Kh7 {[%emt 0:00:02]} 24. Bxg7 {[%emt 0:00:07]} Kxg7 {[%emt 0:00:03]} 25. g4 {[%emt 0:00:36]} Rg8 {[%emt 0:12:32]} 26. gxf5 {[%emt 0:01:36]} Kf6+ {[%emt 0:00:05]} 27. Kf2 {[%emt 0:00:05]} Kxf5 {[%emt 0:00:03]} 28. Ke3 {[%emt 0:00:17]} Ke5 {[%emt 0:00:21]} 29. Kd2+ {[%emt 0:01:42]} Kd6 {[%emt 0:00:07]} 30. Re2 {[%emt 0:00:30]} Raf8 {[%emt 0:04:28]} 31. Nh5 {[%emt 0:03:08]} Ke7 {[%emt 0:01:05]} 32. Ng3 {[%emt 0:01:58]} Rg6 {[%emt 0:00:49]} 33. Nf5+ {[%emt 0:02:08]} Kd7 {[%emt 0:00:06]} 34. Ne3 {[%emt 0:00:14]} b5 {[%emt 0:02:48]} 35. Rf4 {[%emt 0:00:47]} f5 {[%emt 0:01:37]} 36. Ref2 {[%emt 0:01:47]} Bc6 {[%emt 0:01:17]} 37. b4 {[%emt 0:04:52]} cxb4 {[%emt 0:00:18]} 38. Rxb4 {[%emt 0:00:15]} Rg5 {[%emt 0:01:50]} 39. Rbf4 {[%emt 0:02:13]} Ke7 {[%emt 0:02:42]} 40. b4 {[%emt 0:00:30]} Bd7 {[%emt 0:00:31]} 41. d4 {[%emt 0:00:45]} Bc6 {[%emt 0:00:31]} 42. c4 {[%emt 0:02:10]} bxc4 {[%emt 0:00:12]} 43. Nxc4 {[%emt 0:00:13]} Rb8 {[%emt 0:00:28]} 44. Kc3 {[%emt 0:02:49]} Bd5 {[%emt 0:03:40]} 45. Ne3 {[%emt 0:00:14]} Be4 {[%emt 0:00:34]} 46. Ra2 {[%emt 0:02:57]} Rb7 {[%emt 0:00:40]} 47. Rh4 {[%emt 0:01:41]} h5 {[%emt 0:00:19]} 48. Ra5 {[%emt 0:00:26]} Kf6 {[%emt 0:02:05]} 49. Ra6 {[%emt 0:00:36]} Rc7+ {[%emt 0:00:37]} 50. Kd2 {[%emt 0:00:38]} Rd7 {[%emt 0:00:30]} 51. Kc3 {[%emt 0:00:11]} Bf3 {[%emt 0:08:35]} 52. Rf4 {[%emt 0:00:52]} Be2 {[%emt 0:00:18]} 53. Rc6 {[%emt 0:00:24]} Bb5 {[%emt 0:01:43]} 54. Rc5 {[%emt 0:00:06]} a6 {[%emt 0:00:14]} 55. Kb2 {[%emt 0:03:58]} Rd8 {[%emt 0:02:22]} 56. Rc1 {[%emt 0:01:00]} Rd6 {[%emt 0:03:39]} 57. Rc3 {[%emt 0:01:23]} Bc6 {[%emt 0:02:03]} 58. Ra3 {[%emt 0:01:05]} Be4 {[%emt 0:00:19]} 59. Kc3 {[%emt 0:00:33]} Rg1 {[%emt 0:00:17]} 60. Rf1 {[%emt 0:00:31]} Rc6+ {[%emt 0:00:35]} 61. Kd2 {[%emt 0:00:34]} Rxf1 {[%emt 0:00:23]} 62. Nxf1 {[%emt 0:00:05]} f4 {[%emt 0:00:05]} 63. Rc3 {[%emt 0:00:51]} Rxc3 {[%emt 0:01:07]} 64. Kxc3 {[%emt 0:00:06]} Bg2 {[%emt 0:00:30]} 65. Nd2 {[%emt 0:00:08]} Kf5 {[%emt 0:00:25]} 66. Kd3 {[%emt 0:00:10]} Kg4 {[%emt 0:00:45]} 67. Ke2 {[%emt 0:00:14]} Kh3 {[%emt 0:00:15]} 68. Nb3 {[%emt 0:00:07]} Bd5 {[%emt 0:00:07]} 69. Nc5 {[%emt 0:00:04]} Kg2 {[%emt 0:00:05]} 0-1